bitfinex/quotes_SOLUSD_20240708
["timestamp","ask_amount","ask_price","bid_price","bid_amount"]
[1720423533450,111.16019176,132.65,132.54,0.17]
[1720423533866,11.16019176,132.64,132.54,0.17]
[1720423534478,100.0,132.63,132.54,0.17]
[1720423535244,100.0,132.61,132.54,0.17]
[1720423536243,11.16575909,132.63,132.54,0.17]
[1720423536876,11.16575909,132.64,132.54,0.17]
[1720423537263,11.16575909,132.64,132.55,21.8905]
[1720423537460,11.16575909,132.64,132.56,20.17]
[1720423537775,11.15491045,132.64,132.56,20.17]
[1720423538276,111.15799798,132.65,132.56,20.17]
[1720423538652,11.15799798,132.64,132.56,20.17]
[1720423539388,11.15467009,132.64,132.56,20.17]
[1720423539545,100.0,132.61,132.56,0.17]
[1720423539751,111.15467009,132.63,132.56,0.17]
[1720423540274,100.0,132.63,132.56,0.17]
[1720423540469,111.15467009,132.63,132.56,0.17]
[1720423540852,100.0,132.63,132.56,0.17]
[1720423541061,111.16896583,132.63,132.56,20.17]
[1720423541362,100.0,132.61,132.56,20.17]
[1720423542851,100.0,132.61,132.56,20.0]
[1720423543052,100.0,132.59,132.56,20.0]
[1720423543268,100.0,132.59,132.55,412.0905]
[1720423543487,100.0,132.59,132.55,21.8905]
[1720423543848,100.0,132.59,132.52,27.77730972]
[1720423544055,100.0,132.59,132.53,20.0]
[1720423544253,100.0,132.57,132.53,20.0]
[1720423544678,100.0,132.57,132.52,21.6578]
[1720423545377,100.0,132.57,132.53,0.17]
[1720423547253,11.16292133,132.59,132.53,0.17]
[1720423547678,11.16938271,132.59,132.53,0.17]
[1720423547861,11.16938271,132.59,132.53,20.17]
[1720423548062,11.16975129,132.59,132.53,20.17]
[1720423548861,11.16975129,132.6,132.53,20.17]
[1720423549061,11.16975129,132.59,132.53,20.17]
[1720423549623,11.16975129,132.6,132.53,410.37]
[1720423550459,11.16975129,132.59,132.53,410.37]
[1720423550659,100.0,132.63,132.53,410.37]
[1720423550660,11.16975129,132.61,132.53,410.37]
[1720423550866,11.16960087,132.6,132.53,410.37]
[1720423551079,11.16960087,132.61,132.53,410.37]
[1720423552369,11.16960087,132.6,132.53,410.37]
[1720423552573,11.16960087,132.61,132.53,410.37]
[1720423553185,100.0,132.63,132.53,410.37]
[1720423553186,11.16960087,132.6,132.53,410.37]
[1720423553603,11.16960087,132.59,132.53,410.2]
[1720423554397,11.16373865,132.59,132.53,410.2]
[1720423554786,11.16373865,132.58,132.53,410.2]
[1720423555300,11.16373865,132.59,132.54,0.17]
[1720423555469,11.16373865,132.58,132.54,0.17]
[1720423556165,11.16373865,132.57,132.54,0.17]
[1720423556370,11.16373865,132.56,132.53,390.2]
[1720423556602,11.16373865,132.55,132.53,390.2]
[1720423556774,11.16373865,132.55,132.52,21.6578]
[1720423557793,116.5842,132.61,132.52,21.6578]
[1720423557794,11.16373865,132.56,132.52,21.6578]
[1720423557977,11.15231108,132.55,132.52,21.6578]
[1720423558295,11.15231108,132.55,132.53,0.17]
[1720423560476,11.15231108,132.54,132.53,0.17]
[1720423560676,11.1440185,132.55,132.53,0.17]
[1720423561279,100.0,132.59,132.53,0.17]
[1720423561280,11.1440185,132.54,132.53,0.17]
[1720423562690,11.1440185,132.54,132.49,390.2]
[1720423562899,11.1440185,132.52,132.49,390.2]
[1720423563200,100.0,132.58,132.49,390.2]
[1720423563374,11.13490249,132.53,132.49,396.13521811]
[1720423564178,11.13490249,132.53,132.5,20.0]
[1720423564377,11.13490249,132.53,132.51,0.17]
[1720423564674,16.5842,132.61,132.51,0.17]
[1720423564675,8.91269579,132.55,132.51,0.17]
[1720423564986,16.5842,132.61,132.53,23.0603]
[1720423565304,100.0,132.62,132.54,54.7]
[1720423565674,15.3539,132.65,132.54,54.7]
[1720423566675,100.0,132.64,132.54,54.7]
[1720423566900,122.71,132.64,132.54,54.7]
[1720423567198,100.0,132.62,132.54,20.17]
[1720423567803,100.0,132.64,132.54,20.17]
[1720423567986,100.0,132.64,132.54,54.7]
[1720423568674,100.0,132.64,132.54,20.17]
[1720423569705,11.15084442,132.58,132.54,20.17]
[1720423569904,11.15084442,132.58,132.53,413.2603]
[1720423570218,11.15084442,132.55,132.53,23.0603]
[1720423570710,11.15084442,132.54,132.53,23.0603]
[1720423570908,11.15084442,132.54,132.5,22.8165]
[1720423571410,11.15084442,132.55,132.5,22.8165]
[1720423572137,11.15084442,132.55,132.51,20.0]
[1720423572293,11.15084442,132.54,132.51,20.0]
[1720423572685,100.0,132.58,132.51,20.0]
[1720423572996,11.14985894,132.54,132.51,20.0]
[1720423573195,11.14985894,132.54,132.52,0.17]
[1720423573684,11.14985894,132.55,132.52,0.17]
[1720423574406,11.14985894,132.54,132.52,0.17]
[1720423574781,11.14985894,132.53,132.52,0.17]
[1720423575792,8.30585894,132.54,132.52,0.17]
[1720423576001,100.0,132.6,132.52,0.17]
[1720423576201,106.1843,132.62,132.52,0.17]
[1720423576416,106.1843,132.62,132.52,390.37]
[1720423576594,106.1843,132.62,132.53,20.0]
[1720423576801,106.1843,132.62,132.54,0.17]
[1720423577514,122.71,132.64,132.54,0.17]
[1720423577892,100.0,132.62,132.54,0.17]
[1720423578525,100.0,132.59,132.54,0.17]
[1720423581617,100.0,132.56,132.5,22.8165]
[1720423581791,100.0,132.56,132.49,5.93521811]
[1720423581991,100.0,132.56,132.47,22.732]
[1720423583812,100.0,132.56,132.48,0.17]
[1720423584013,100.0,132.54,132.47,28.7664843]
[1720423585215,100.0,132.52,132.47,6.0344843]
[1720423585415,100.0,132.52,132.43,21.3623]
[1720423585632,100.0,132.52,132.43,411.5623]
[1720423586321,100.0,132.52,132.43,417.52808736]
[1720423587028,100.0,132.52,132.44,0.17]
[1720423587825,100.0,132.52,132.44,20.17]
[1720423588027,100.0,132.5,132.44,20.17]
[1720423588233,15.9005,132.54,132.43,5.96578736]
[1720423588430,15.9005,132.54,132.41,9.8639533]
[1720423588633,15.9005,132.54,132.44,32.1857533]
[1720423588816,115.2424,132.57,132.44,32.1857533]
[1720423589015,115.2424,132.57,132.44,38.66999025]
[1720423589434,115.2424,132.57,132.45,20.17]
[1720423589745,15.2424,132.57,132.46,7.5492]
[1720423589924,15.2424,132.57,132.47,27.7188]
[1720423590135,115.7028,132.6,132.48,7.5478]
[1720423590323,115.7028,132.6,132.49,0.17]
[1720423590524,115.7028,132.6,132.5,34.52]
[1720423590733,115.7028,132.6,132.51,20.17]
[1720423590914,15.7028,132.6,132.51,20.17]
[1720423591114,16.2495,132.64,132.52,40.8455]
[1720423591319,16.2495,132.64,132.53,20.17]
[1720423591621,16.2495,132.64,132.54,34.52]
[1720423591839,16.2495,132.64,132.55,20.17]
[1720423595144,100.0,132.67,132.55,20.17]
[1720423595145,115.3754,132.67,132.55,410.37]
[1720423597430,100.0,132.65,132.55,410.37]
[1720423598227,100.0,132.63,132.55,390.2]
[1720423599452,134.52,132.66,132.55,390.2]
[1720423599753,34.52,132.66,132.56,20.0]
[1720423599959,34.52,132.66,132.56,20.17]
[1720423600349,34.52,132.66,132.56,410.37]
[1720423601960,34.52,132.66,132.57,6.0504]
[1720423602129,15.3754,132.67,132.58,20.17]
[1720423602334,100.9530589,132.69,132.59,15.0172]
[1720423602631,100.9530589,132.69,132.6,20.17]
[1720423602832,100.9530589,132.69,132.6,410.37]
[1720423603451,34.52,132.68,132.6,410.37]
[1720423603657,0.9530589,132.69,132.6,410.37]
[1720423603857,0.9530589,132.69,132.61,6.4587]
[1720423604072,0.9530589,132.69,132.62,20.17]
[1720423607367,34.52,132.76,132.64,6.3817]
[1720423607677,34.52,132.76,132.65,20.17]
[1720423608471,134.52,132.74,132.65,0.17]
[1720423609759,100.0,132.72,132.65,0.17]
[1720423609963,134.52,132.72,132.65,0.17]
[1720423610437,100.0,132.72,132.65,0.17]
[1720423610763,100.0,132.69,132.64,390.2]
[1720423611061,100.0,132.67,132.6,16.0311]
[1720423611279,134.52,132.67,132.6,16.0311]
[1720423611453,34.52,132.67,132.6,16.0311]
[1720423611969,100.0,132.66,132.6,16.0311]
[1720423612948,100.0,132.66,132.59,6.08872287]
[1720423613168,100.0,132.66,132.58,6.4956]
[1720423613544,100.0,132.64,132.58,12.37769077]
[1720423613746,100.0,132.64,132.57,15.3792]
[1720423614073,100.0,132.62,132.55,6.2083]
[1720423614946,100.0,132.62,132.51,6.2416]
[1720423614947,100.0,132.58,132.51,6.2416]
[1720423615984,100.0,132.56,132.5,390.2]
[1720423616281,100.0,132.56,132.47,396.6671]
[1720423616844,100.0,132.56,132.47,402.75018439]
[1720423617553,100.0,132.54,132.47,402.75018439]
[1720423617757,100.0,132.54,132.47,396.6671]
[1720423618665,15.9001,132.56,132.47,396.6671]
[1720423619753,15.9001,132.56,132.48,0.17]
[1720423620069,122.71,132.53,132.43,16.0514533]
[1720423620366,100.0,132.53,132.44,20.0]
[1720423620544,100.0,132.51,132.44,20.0]
[1720423622750,100.0,132.51,132.41,416.3063533]
[1720423622953,16.3805,132.5,132.41,400.1639533]
[1720423624069,16.3805,132.5,132.42,0.17]
[1720423624685,100.0,132.47,132.41,5.99392102]
[1720423624864,100.0,132.47,132.41,0.1]
[1720423626563,100.0,132.45,132.41,0.1]
[1720423627376,100.0,132.47,132.41,0.1]
[1720423629366,100.0,132.49,132.41,0.1]
[1720423631573,122.71,132.47,132.41,0.1]
[1720423631773,100.0,132.43,132.41,0.1]
[1720423639873,30.0,132.42,132.41,0.1]
[1720423643586,100.0,132.43,132.41,0.1]
[1720423643971,139.1339,132.47,132.41,0.1]
[1720423644168,34.61,132.46,132.41,0.1]
[1720423644378,116.4239,132.47,132.41,0.1]
[1720423645584,139.1339,132.47,132.41,0.1]
[1720423645787,100.0,132.44,132.41,0.1]
[1720423646084,134.61,132.46,132.41,0.1]
[1720423647488,100.0,132.46,132.41,0.1]
[1720423647785,16.4239,132.47,132.41,0.1]
[1720423648787,39.1339,132.47,132.41,0.1]
[1720423649692,16.4239,132.47,132.41,0.1]
[1720423650981,34.61,132.48,132.41,0.1]
[1720423651388,100.0,132.46,132.41,0.1]
[1720423651579,134.61,132.46,132.41,0.1]
[1720423652174,157.32,132.46,132.41,0.1]
[1720423653268,134.61,132.44,132.41,0.1]
[1720423653489,100.0,132.42,132.41,0.1]
[1720423653698,157.32,132.44,132.41,0.1]
[1720423655470,134.61,132.44,132.41,0.1]
[1720423656179,15.1333,132.45,132.41,0.1]
[1720423656886,37.8433,132.45,132.41,0.1]
[1720423657094,15.1333,132.45,132.41,0.1]
[1720423658400,134.61,132.46,132.41,0.1]
[1720423658606,100.0,132.46,132.41,0.1]
[1720423659408,157.32,132.48,132.41,0.1]
[1720423660076,100.0,132.45,132.41,0.1]
[1720423660277,122.71,132.47,132.41,0.1]
[1720423660516,34.61,132.46,132.41,0.1]
[1720423665502,145.4992,132.49,132.41,0.1]
[1720423665688,56.42288055,132.48,132.41,0.1]
[1720423666009,34.61,132.48,132.41,0.1]
[1720423666200,116.4887,132.49,132.41,0.1]
[1720423666506,57.32,132.52,132.42,15.8874]
[1720423666713,44.51970141,132.51,132.43,21.65133901]
[1720423666911,21.80970141,132.5,132.43,21.65133901]
[1720423667097,21.80970141,132.5,132.43,20.17]
[1720423667297,34.61,132.52,132.43,20.17]
[1720423667497,21.80850631,132.51,132.43,20.17]
[1720423667806,34.61,132.52,132.43,20.17]
[1720423668199,15.4867,132.53,132.44,6.5059]
[1720423668407,34.61,132.54,132.45,20.17]
[1720423668789,21.80477531,132.53,132.45,20.17]
[1720423668986,34.61,132.54,132.45,20.17]
[1720423669217,21.80425879,132.53,132.45,20.17]
[1720423669514,34.61,132.55,132.45,20.17]
[1720423669706,21.80426439,132.54,132.45,20.17]
[1720423670290,34.61,132.55,132.45,20.17]
[1720423671796,157.32,132.55,132.45,20.17]
[1720423673692,100.0,132.52,132.45,0.17]
[1720423674410,100.0,132.52,132.44,6.5059]
[1720423674411,100.0,132.5,132.44,6.5059]
[1720423674605,122.71,132.5,132.44,6.5059]
[1720423675114,100.0,132.48,132.43,390.2]
[1720423677791,100.0,132.48,132.42,15.8874]
[1720423678608,122.71,132.48,132.42,15.8874]
[1720423679527,100.0,132.46,132.41,6.3943]
[1720423680031,100.0,132.46,132.41,0.1]
[1720423683731,122.71,132.46,132.41,0.1]
[1720423684233,100.0,132.46,132.41,0.1]
[1720423684807,100.0,132.48,132.41,0.1]
[1720423685431,15.1472,132.5,132.41,0.1]
[1720423685633,16.4984,132.53,132.41,0.1]
[1720423685808,34.61,132.52,132.41,0.1]
[1720423686431,34.61,132.52,132.41,1.60987194]
[1720423686621,157.32,132.52,132.42,0.17]
[1720423686830,16.4984,132.53,132.44,16.5339]
[1720423687013,100.0,132.54,132.45,20.17]
[1720423688045,34.61,132.55,132.45,20.17]
[1720423688411,115.8855,132.56,132.45,20.17]
[1720423688625,150.4955,132.56,132.45,20.17]
[1720423688925,173.2055,132.56,132.45,20.17]
[1720423689144,150.4955,132.56,132.45,20.17]
[1720423689832,173.2055,132.56,132.45,20.17]
[1720423690362,150.4955,132.56,132.45,20.17]
[1720423691145,134.61,132.58,132.46,6.1272]
[1720423691346,134.61,132.58,132.48,16.4028]
[1720423691552,134.61,132.58,132.49,20.17]
[1720423692831,34.61,132.58,132.5,6.3536]
[1720423693036,134.61,132.6,132.51,20.17]
[1720423693350,100.0,132.6,132.51,20.17]
[1720423693942,172.4927,132.62,132.51,20.17]
[1720423694836,149.7827,132.62,132.51,20.17]
[1720423695449,172.4927,132.62,132.51,20.17]
[1720423696287,100.0,132.65,132.52,22.2512]
[1720423696460,100.0,132.65,132.54,34.61]
[1720423696658,100.0,132.65,132.55,31.85692797]
[1720423698079,100.0,132.65,132.56,6.0706]
[1720423698385,100.0,132.65,132.57,20.17]
[1720423698591,100.0,132.63,132.57,20.17]
[1720423698765,100.0,132.63,132.57,0.17]
[1720423699680,122.71,132.63,132.56,6.0706]
[1720423701062,100.0,132.63,132.56,6.0706]
[1720423708190,16.2761,132.69,132.57,35.5143]
[1720423708496,16.2761,132.69,132.58,0.17]
[1720423708683,116.2761,132.69,132.58,11.85692797]
[1720423708886,100.0,132.71,132.6,6.0508]
[1720423709098,100.0,132.71,132.61,0.17]
[1720423709099,134.61,132.71,132.61,0.17]
[1720423709692,134.61,132.71,132.61,20.17]
[1720423710074,100.0,132.71,132.61,20.17]
[1720423710402,122.71,132.69,132.61,20.17]
[1720423710586,100.0,132.67,132.61,20.0]
[1720423711588,138.0574,132.72,132.62,16.438]
[1720423711789,138.0574,132.72,132.63,0.17]
[1720423712868,138.0574,132.72,132.62,16.438]
[1720423713071,100.0,132.7,132.62,16.438]
[1720423713886,122.71,132.7,132.62,16.438]
[1720423714698,100.0,132.7,132.62,16.438]
[1720423714991,34.61,132.71,132.62,16.438]
[1720423715176,15.3474,132.72,132.63,20.17]
[1720423715597,22.71,132.73,132.63,20.17]
[1720423717583,100.0,132.7,132.63,20.17]
[1720423717913,100.0,132.7,132.63,20.0]
[1720423718278,100.0,132.7,132.62,16.438]
[1720423719775,134.61,132.72,132.63,0.17]
[1720423720205,157.3,132.72,132.63,0.17]
[1720423721076,100.0,132.69,132.63,0.17]
[1720423721279,122.69,132.69,132.62,16.438]
[1720423721498,100.0,132.67,132.62,16.438]
[1720423722412,100.0,132.67,132.6,12.19462212]
[1720423722616,100.0,132.69,132.61,20.0]
[1720423723787,122.69,132.69,132.61,20.0]
[1720423724306,100.0,132.69,132.61,20.0]
[1720423724894,122.69,132.69,132.61,20.0]
[1720423725707,100.0,132.67,132.61,20.0]
[1720423726010,100.0,132.67,132.6,6.0508]
[1720423729010,122.69,132.67,132.6,6.0508]
[1720423733620,100.0,132.67,132.6,6.0508]
[1720423733908,100.0,132.7,132.61,0.17]
[1720423734085,100.0,132.7,132.61,31.85692797]
[1720423734287,100.0,132.68,132.61,31.68692797]
[1720423734511,100.0,132.7,132.62,0.17]
[1720423734695,100.0,132.68,132.61,31.68692797]
[1720423734898,100.0,132.68,132.61,20.0]
[1720423735102,100.0,132.66,132.6,6.0508]
[1720423735393,122.69,132.68,132.6,6.0508]
[1720423737914,100.0,132.66,132.6,6.0508]
[1720423739113,122.69,132.68,132.6,6.0508]
[1720423739299,157.3,132.68,132.6,6.0508]
[1720423740209,0.17,132.69,132.6,6.0508]
[1720423740415,157.3,132.7,132.61,0.17]
[1720423740609,122.69,132.68,132.6,6.0508]
[1720423743611,157.3,132.68,132.6,6.0508]
[1720423743929,100.0,132.63,132.59,15.5984]
[1720423744213,100.0,132.63,132.57,6.1054]
[1720423744214,122.69,132.63,132.57,6.1054]
[1720423744612,100.0,132.61,132.57,6.1054]
[1720423744828,100.0,132.59,132.55,16.2902]
[1720423745503,16.0104,132.66,132.55,16.2902]
[1720423745504,100.0,132.61,132.55,16.2902]
[1720423746016,122.69,132.61,132.55,16.2902]
[1720423746716,100.0,132.61,132.55,16.2902]
[1720423747096,122.69,132.61,132.55,16.2902]
[1720423747698,34.61,132.62,132.55,16.2902]
[1720423748396,100.0,132.61,132.55,16.2902]
[1720423748793,122.69,132.61,132.55,16.2902]
[1720423751400,139.115,132.59,132.49,412.1813]
[1720423751720,122.69,132.59,132.49,21.9813]
[1720423752505,122.69,132.59,132.49,27.96877566]
[1720423752706,122.69,132.59,132.5,20.0]
[1720423753921,100.0,132.57,132.49,27.96877566]
[1720423754220,122.69,132.57,132.49,27.96877566]
[1720423755218,122.69,132.57,132.5,20.0]
[1720423755811,100.0,132.57,132.5,20.0]
[1720423756205,57.3,132.58,132.5,20.0]
[1720423757202,22.69,132.6,132.5,20.0]
[1720423757400,100.0,132.61,132.51,0.17]
[1720423757598,100.0,132.59,132.51,0.17]
[1720423758515,122.69,132.59,132.5,20.0]
[1720423758713,122.69,132.57,132.5,20.0]
[1720423759621,57.3,132.56,132.49,21.9813]
[1720423760434,100.0,132.57,132.49,21.9813]
[1720423761732,122.69,132.57,132.49,21.9813]
[1720423764927,34.61,132.58,132.49,21.9813]
[1720423765121,34.61,132.58,132.5,0.17]
[1720423765326,57.3,132.58,132.49,21.9813]
[1720423765727,34.61,132.58,132.49,21.9813]
[1720423766030,122.69,132.59,132.5,0.17]
[1720423766530,157.3,132.59,132.49,21.9813]
[1720423769941,157.3,132.59,132.5,0.17]
[1720423770123,122.69,132.56,132.49,21.9813]
[1720423771234,100.0,132.56,132.49,21.9813]
[1720423771635,122.69,132.56,132.49,21.9813]
[1720423772816,34.78,132.58,132.49,21.9813]
[1720423772817,22.69,132.57,132.49,21.9813]
[1720423773641,134.78,132.58,132.49,21.9813]
[1720423773942,157.3,132.58,132.49,21.9813]
[1720423774118,134.61,132.58,132.5,0.17]
[1720423774649,17.27,132.55,132.5,17.44]
[1720423775445,17.27,132.54,132.5,17.44]
[1720423775946,17.27,132.53,132.49,39.2513]
[1720423778542,100.0,132.56,132.49,39.2513]
[1720423778719,17.27,132.54,132.49,39.2513]
[1720423779041,100.0,132.56,132.49,39.2513]
[1720423779429,17.27,132.54,132.49,39.2513]
[1720423779629,17.27,132.54,132.49,21.9813]
[1720423779832,17.27,132.54,132.49,39.2513]
[1720423780536,100.0,132.58,132.49,39.2513]
[1720423780733,17.27,132.54,132.49,39.2513]
[1720423781247,17.27,132.53,132.49,21.9813]
[1720423781619,17.27,132.54,132.49,39.2513]
[1720423781821,191.77,132.58,132.49,39.2513]
[1720423781822,122.69,132.58,132.49,39.2513]
[1720423782043,17.27,132.54,132.49,39.2513]
[1720423784434,122.69,132.58,132.49,39.2513]
[1720423784633,17.27,132.54,132.5,17.27]
[1720423784854,17.27,132.54,132.49,21.9813]
[1720423785026,17.27,132.54,132.49,39.2513]
[1720423785753,191.77,132.58,132.49,39.2513]
[1720423785934,100.0,132.6,132.5,0.17]
[1720423786121,116.382,132.62,132.53,17.27]
[1720423786328,43.60023538,132.77,132.55,21.2129]
[1720423786329,100.0,132.65,132.55,21.2129]
[1720423786563,17.27,132.6,132.55,38.4829]
[1720423786852,22.69,132.64,132.56,17.27]
[1720423787056,17.27,132.6,132.56,17.27]
[1720423787650,17.27,132.6,132.55,38.4829]
[1720423788726,17.27,132.6,132.55,21.2129]
[1720423788925,17.27,132.59,132.55,38.4829]
[1720423789528,17.27,132.6,132.55,38.4829]
[1720423791048,100.0,132.63,132.55,38.4829]
[1720423791049,17.27,132.59,132.55,38.4829]
[1720423791634,17.27,132.59,132.55,21.2129]
[1720423792743,17.27,132.57,132.55,21.2129]
[1720423793067,17.27,132.58,132.55,21.2129]
[1720423794246,122.69,132.63,132.55,38.4829]
[1720423794536,117.27,132.56,132.49,6.17055116]
[1720423794744,17.27,132.53,132.48,38.8919]
[1720423794946,17.27,132.53,132.49,17.27]
[1720423795151,22.69,132.57,132.5,17.27]
[1720423795337,17.27,132.54,132.49,17.27]
[1720423795746,100.0,132.58,132.49,17.27]
[1720423795954,17.27,132.54,132.49,17.27]
[1720423796560,17.27,132.53,132.48,39.0619]
[1720423796761,17.27,132.53,132.49,0.17]
[1720423797165,17.27,132.53,132.49,17.44]
[1720423797383,100.0,132.58,132.5,17.27]
[1720423797548,100.0,132.54,132.47,5.88027147]
[1720423797745,17.27,132.5,132.45,17.27]
[1720423798068,17.27,132.5,132.44,21.6734]
[1720423798245,100.0,132.54,132.44,21.6734]
[1720423798246,100.0,132.54,132.46,17.27]
[1720423798445,17.27,132.5,132.44,27.57185165]
[1720423798663,17.27,132.5,132.45,17.27]
[1720423799286,17.27,132.5,132.46,20.0]
[1720423799639,69.08,132.58,132.44,27.57185165]
[1720423799640,139.96,132.47,132.44,5.89845165]
[1720423799864,139.96,132.47,132.41,0.1]
[1720423799865,17.27,132.45,132.41,0.1]
[1720423800082,17.27,132.42,132.41,0.1]
[1720423800575,100.0,132.44,132.41,0.1]
[1720423800943,57.3,132.46,132.41,0.1]
[1720423801182,134.61,132.48,132.41,0.1]
[1720423801357,15.3112,132.49,132.41,0.1]
[1720423801562,100.0,132.48,132.41,0.1]
[1720423802881,122.69,132.48,132.41,0.1]
[1720423804657,100.0,132.45,132.41,0.1]
[1720423805281,34.61,132.47,132.41,0.1]
[1720423805660,57.3,132.47,132.41,0.1]
[1720423806060,15.3112,132.49,132.41,0.1]
[1720423806061,49.9212,132.49,132.41,0.1]
[1720423806274,72.6112,132.49,132.41,0.1]
[1720423806865,100.0,132.46,132.41,0.1]
[1720423807582,22.69,132.47,132.41,0.1]
[1720423807993,34.61,132.49,132.41,0.1]
[1720423808366,100.0,132.5,132.41,0.1]
[1720423809082,100.0,132.48,132.41,0.1]
[1720423810589,22.69,132.5,132.42,16.3613]
[1720423810590,100.0,132.5,132.42,16.3613]
[1720423811784,100.0,132.48,132.42,16.3613]
[1720423814273,157.3,132.5,132.42,16.3613]
[1720423814474,122.69,132.5,132.42,16.3613]
[1720423815770,100.0,132.48,132.42,16.3613]
[1720423816280,100.0,132.46,132.41,0.1]
[1720423816994,122.69,132.48,132.41,0.1]
[1720423817383,100.0,132.48,132.41,0.1]
[1720423817580,157.3,132.5,132.41,0.1]
[1720423818078,157.3,132.5,132.42,21.151]
[1720423818399,122.69,132.5,132.42,21.151]
[1720423819912,100.0,132.48,132.42,21.151]
[1720423820996,17.3,132.46,132.42,21.151]
[1720423821177,17.3,132.47,132.42,38.451]
[1720423821372,17.3,132.47,132.43,17.3]
[1720423821980,122.69,132.5,132.43,17.3]
[1720423822182,100.0,132.5,132.44,17.3]
[1720423822383,17.3,132.49,132.44,17.3]
[1720423822679,17.3,132.5,132.45,17.3]
[1720423823379,100.0,132.5,132.42,21.151]
[1720423823688,17.3,132.48,132.43,37.3]
[1720423823879,17.3,132.48,132.44,0.17]
[1720423824082,17.3,132.48,132.44,17.47]
[1720423824291,100.0,132.52,132.44,17.47]
[1720423824499,17.3,132.49,132.44,17.47]
[1720423824875,100.0,132.52,132.44,17.47]
[1720423825084,17.3,132.49,132.44,17.47]
[1720423825286,100.0,132.54,132.44,17.47]
[1720423825597,17.3,132.52,132.48,23.4752]
[1720423825906,22.69,132.56,132.48,39.2797]
[1720423825907,17.3,132.53,132.48,39.2797]
[1720423826306,100.0,132.56,132.48,39.2797]
[1720423826494,100.0,132.56,132.5,17.3]
[1720423826684,17.3,132.55,132.51,17.3]
[1720423827203,100.0,132.62,132.53,17.3]
[1720423827430,17.3,132.59,132.54,17.3]
[1720423827902,122.69,132.62,132.54,17.3]
[1720423828091,17.3,132.59,132.54,23.6014]
[1720423828399,17.3,132.59,132.55,17.3]
[1720423828705,122.69,132.62,132.54,6.3014]
[1720423829282,100.0,132.62,132.55,0.17]
[1720423829482,100.0,132.65,132.55,0.17]
[1720423829677,116.3745,132.67,132.55,20.17]
[1720423829903,140.8104,132.7,132.56,34.52]
[1720423830091,140.8104,132.7,132.57,20.17]
[1720423830288,22.69,132.69,132.57,20.17]